[Event "XI Paracin Festival 2018"]
[Site "Paracin"]
[Date "2018.07.10"]
[Round "5"]
[White "Tomic, Aleksandar"]
[Black "Lorparizangeneh, Shahin"]
[Result "0-1"]
[ECO "A45"]
[WhiteElo "2347"]
[BlackElo "2493"]
[Annotator "ChessBase"]
[PlyCount "32"]
[EventDate "2018.07.06"]
[EventType "swiss"]
[EventCountry "SRB"]
[SourceTitle "playchess.com"]
[Source "ChessBase"]
[SourceQuality "1"]
[TimeControl "5400+30"]

1. d4 {[%emt 0:00:00]} Nf6 {[%emt 0:00:36]} 2. Bf4 {[%emt 0:00:01]} c5 {[%emt 0:01:03]} 3. dxc5 {[%emt 0:00:22]} Na6 {[%emt 0:02:50]} 4. Qd4 {[%emt 0:01:02]} Qa5+ {[%emt 0:02:33]} 5. Nc3 {[%emt 0:02:28]} Nxc5 {[%emt 0:09:43]} 6. O-O-O {[%emt 0:29:34]} d6 {[%emt 0:11:34]} 7. e4 {[%emt 0:11:11]} e5 {[%emt 0:25:50]} 8. Bxe5 {[%emt 0:07:19]} dxe5 {[%emt 0:01:16]} 9. Bb5+ {[%emt 0:07:00]} Bd7 {[%emt 0:02:31]} 10. Qxe5+ {[%emt 0:00:46]} Be7 {[%emt 0:00:19]} 11. Rxd7 {[%emt 0:33:32]} Nfxd7 {[%emt 0:01:06]} 12. Qxg7 {[%emt 0:01:49]} O-O-O {[%emt 0:01:38]} 13. Qxf7 {[%emt 0:00:41]} Nxe4 {[%emt 0:07:46]} 14. Qc4+ {[%emt 0:00:37]} Ndc5 {[%emt 0:00:24]} 15. Nge2 {[%emt 0:00:27]} a6 {[%emt 0:01:37]} 16. Qf7 {[%emt 0:00:37]} Nxc3 {[%emt 0:02:19]} 0-1

[Event "XI Paracin Festival 2018"]
[Site "Paracin"]
[Date "2018.07.10"]
[Round "5"]
[White "Raja Rithvik R"]
[Black "Fernandez, Daniel Howard"]
[Result "1-0"]
[ECO "A04"]
[WhiteElo "2343"]
[BlackElo "2477"]
[Annotator "ChessBase"]
[PlyCount "75"]
[EventDate "2018.07.06"]
[EventType "swiss"]
[EventCountry "SRB"]
[SourceTitle "playchess.com"]
[Source "ChessBase"]
[SourceQuality "1"]
[TimeControl "5400+30"]

1. Nf3 {[%emt 0:00:00]} g6 {[%emt 0:12:50]} 2. d4 {[%emt 0:00:00]} Bg7 {[%emt 0:00:24]} 3. g3 {[%emt 0:00:13]} d6 {[%emt 0:00:20]} 4. c4 {[%emt 0:00:06]} e5 {[%emt 0:00:53]} 5. Nc3 {[%emt 0:00:53]} f5 {[%emt 0:15:49]} 6. dxe5 {[%emt 0:10:21]} dxe5 {[%emt 0:00:14]} 7. Qxd8+ {[%emt 0:00:06]} Kxd8 {[%emt 0:00:07]} 8. Bg5+ {[%emt 0:00:03]} Ke8 {[%emt 0:00:09]} 9. O-O-O {[%emt 0:00:05]} Na6 {[%emt 0:01:24]} 10. h4 {[%emt 0:10:05]} Be6 {[%emt 0:07:29]} 11. e4 {[%emt 0:14:37]} h6 {[%emt 0:06:11]} 12. Be3 {[%emt 0:09:31]} Ne7 {[%emt 0:00:03]} 13. Nd5 {[%emt 0:08:01]} Rd8 {[%emt 0:05:22]} 14. Bh3 {[%emt 0:03:31]} Rf8 {[%emt 0:08:28]} 15. b3 {[%emt 0:08:09]} b6 {[%emt 0:03:16]} 16. h5 {[%emt 0:07:32]} Bxd5 {[%emt 0:00:24]} 17. exd5 {[%emt 0:00:05]} g5 {[%emt 0:00:56]} 18. Bg2 {[%emt 0:01:31]} f4 {[%emt 0:01:30]} 19. gxf4 {[%emt 0:01:12]} gxf4 {[%emt 0:00:02]} 20. Bd2 {[%emt 0:00:11]} e4 {[%emt 0:00:58]} 21. Nh4 {[%emt 0:00:27]} Nc5 {[%emt 0:00:34]} 22. Bb4 {[%emt 0:02:41]} f3 {[%emt 0:01:21]} 23. Bh3 {[%emt 0:02:12]} Rf4 {[%emt 0:09:19]} 24. Be6 {[%emt 0:03:45]} Nxe6 {[%emt 0:13:01]} 25. Bxe7 {[%emt 0:00:11]} Kxe7 {[%emt 0:00:07]} 26. Ng6+ {[%emt 0:00:04]} Ke8 {[%emt 0:00:07]} 27. dxe6 {[%emt 0:00:11]} Rxd1+ {[%emt 0:01:23]} 28. Rxd1 {[%emt 0:00:04]} Rf6 {[%emt 0:00:43]} 29. e7 {[%emt 0:02:55]} Rd6 {[%emt 0:00:28]} 30. Re1 {[%emt 0:03:40]} Bd4 {[%emt 0:01:45]} 31. Rxe4 {[%emt 0:01:25]} Bxf2 {[%emt 0:00:10]} 32. Re5 {[%emt 0:00:03]} Bc5 {[%emt 0:04:51]} 33. Rf5 {[%emt 0:01:22]} Re6 {[%emt 0:00:50]} 34. Rf8+ {[%emt 0:01:20]} Kd7 {[%emt 0:00:01]} 35. Rd8+ {[%emt 0:01:30]} Kc6 {[%emt 0:00:02]} 36. e8=Q+ {[%emt 0:00:06]} Rxe8 {[%emt 0:00:05]} 37. Rxe8 {[%emt 0:00:03]} f2 {[%emt 0:00:05]} 38. Re6+ {[%emt 0:00:02]} 1-0

[Event "XI Paracin Festival 2018"]
[Site "Paracin"]
[Date "2018.07.10"]
[Round "5"]
[White "Marjanovic, Annamaria"]
[Black "Mehmed, Elif"]
[Result "1-0"]
[ECO "E46"]
[WhiteElo "2325"]
[BlackElo "1973"]
[Annotator "NA"]
[PlyCount "47"]
[EventDate "2018.07.06"]
[EventType "swiss"]
[EventCountry "SRB"]
[SourceTitle "playchess.com"]
[Source "ChessBase"]
[SourceQuality "1"]
[TimeControl "5400+30"]

1. d4 {[%emt 0:00:00]} Nf6 {[%emt 0:00:00]} 2. c4 {[%emt 0:00:00]} e6 {[%emt 0:00:00]} 3. Nc3 {[%emt 0:00:00]} Bb4 {[%emt 0:00:05]} 4. e3 {[%emt 0:00:31]} O-O {[%emt 0:00:11]} 5. Nge2 {[%emt 0:00:27]} Re8 {[%emt 0:00:21]} 6. a3 {[%emt 0:01:16]} Bf8 {[%emt 0:00:11]} 7. Ng3 {[%emt 0:00:53]} d5 {[%emt 0:00:29]} 8. Be2 {[%emt 0:01:25]} b6 {[%emt 0:19:26]} 9. cxd5 {[%emt 0:01:24]} exd5 {[%emt 0:00:57]} 10. O-O {[%emt 0:00:08]} Bb7 {[%emt 0:02:26]} 11. Bf3 {[%emt 0:01:42]} g6 {[%emt 0:00:58]} 12. b4 {[%emt 0:02:54]} Ne4 {[%emt 0:07:22]} 13. Qc2 {[%emt 0:07:55]} f5 {[%emt 0:03:32]} 14. Be2 {[%emt 0:03:43]} Bg7 {[%emt 0:05:06]} 15. Ngxe4 {[%emt 0:03:20]} fxe4 {[%emt 0:11:58]} 16. f3 {[%emt 0:10:50]} c5 {[%emt 0:32:20]} 17. bxc5 {[%emt 0:10:58]} bxc5 {[%emt 0:00:04]} 18. dxc5 {[%emt 0:02:38]} Qa5 {[%emt 0:02:40]} 19. Rb1 {[%emt 0:05:57]} Bc6 {[%emt 0:05:43]} 20. Nb5 {[%emt 0:04:59]} a6 {[%emt 0:00:18]} 21. Bd2 {[%emt 0:00:41]} Qd8 {[%emt 0:00:04]} 22. Nd6 {[%emt 0:00:21]} Re7 {[%emt 0:00:14]} 23. fxe4 {[%emt 0:01:15]} dxe4 {[%emt 0:00:07]} 24. Bc4+ {[%emt 0:00:43]} 1-0

[Event "XI Paracin Festival 2018"]
[Site "Paracin"]
[Date "2018.07.10"]
[Round "5"]
[White "Kathmale, Sameer"]
[Black "Harsha Bharathakoti"]
[Result "1-0"]
[ECO "C11"]
[WhiteElo "2323"]
[BlackElo "2465"]
[Annotator "ChessBase"]
[PlyCount "69"]
[EventDate "2018.07.06"]
[EventType "swiss"]
[EventCountry "SRB"]
[SourceTitle "playchess.com"]
[Source "ChessBase"]
[SourceQuality "1"]
[TimeControl "5400+30"]

1. e4 {[%emt 0:00:00]} e6 {[%emt 0:00:03]} 2. d4 {[%emt 0:00:57]} d5 {[%emt 0:00:08]} 3. Nc3 {[%emt 0:00:01]} Nf6 {[%emt 0:00:08]} 4. e5 {[%emt 0:00:49]} Nfd7 {[%emt 0:00:06]} 5. Nce2 {[%emt 0:00:06]} c5 {[%emt 0:00:18]} 6. c3 {[%emt 0:00:11]} Nc6 {[%emt 0:00:06]} 7. Nf3 {[%emt 0:00:07]} Qa5 {[%emt 0:07:54]} 8. a3 {[%emt 0:00:22]} cxd4 {[%emt 0:00:04]} 9. b4 {[%emt 0:00:33]} Qc7 {[%emt 0:00:40]} 10. cxd4 {[%emt 0:00:34]} b5 {[%emt 0:00:03]} 11. Nf4 {[%emt 0:14:45]} a5 {[%emt 0:01:25]} 12. Bxb5 {[%emt 0:04:46]} axb4 {[%emt 0:11:01]} 13. O-O {[%emt 0:01:36]} Qb6 {[%emt 0:17:31]} 14. Ba4 {[%emt 0:07:37]} Ba6 {[%emt 0:20:32]} 15. Re1 {[%emt 0:00:42]} bxa3 {[%emt 0:02:39]} 16. Nxd5 {[%emt 0:03:26]} exd5 {[%emt 0:05:45]} 17. e6 {[%emt 0:00:23]} Nf6 {[%emt 0:00:28]} 18. exf7+ {[%emt 0:13:33]} Kd8 {[%emt 0:04:40]} 19. Bg5 {[%emt 0:08:12]} Bb4 {[%emt 0:05:54]} 20. Re6 {[%emt 0:15:34]} Bb5 {[%emt 0:03:30]} 21. Bxb5 {[%emt 0:03:46]} Qxb5 {[%emt 0:00:04]} 22. Ne5 {[%emt 0:01:39]} Ne7 {[%emt 0:08:54]} 23. Qb3 {[%emt 0:04:07]} Qa4 {[%emt 0:03:25]} 24. Qh3 {[%emt 0:03:29]} Rf8 {[%emt 0:04:57]} 25. Bxf6 {[%emt 0:03:18]} gxf6 {[%emt 0:00:02]} 26. Rxf6 {[%emt 0:00:44]} Kc7 {[%emt 0:02:06]} 27. Rc1+ {[%emt 0:02:24]} Kb7 {[%emt 0:00:06]} 28. Rfc6 {[%emt 0:03:31]} Nxc6 {[%emt 0:00:56]} 29. Qd7+ {[%emt 0:00:01]} Kb6 {[%emt 0:00:34]} 30. Rxc6+ {[%emt 0:00:25]} Qxc6 {[%emt 0:00:27]} 31. Qxc6+ {[%emt 0:00:07]} Ka5 {[%emt 0:00:04]} 32. Qxd5+ {[%emt 0:00:58]} Ka4 {[%emt 0:00:41]} 33. Qc6+ {[%emt 0:00:49]} Kb3 {[%emt 0:00:29]} 34. Qc4+ {[%emt 0:00:11]} Ka4 {[%emt 0:00:14]} 35. Nd3 {[%emt 0:00:28]} 1-0

[Event "XI Paracin Festival 2018"]
[Site "Paracin"]
[Date "2018.07.10"]
[Round "5"]
[White "Cerovic, Danilo"]
[Black "Ivic, Velimir"]
[Result "0-1"]
[ECO "E66"]
[WhiteElo "2294"]
[BlackElo "2432"]
[Annotator "NA"]
[PlyCount "60"]
[EventDate "2018.07.06"]
[EventType "swiss"]
[EventCountry "SRB"]
[SourceTitle "playchess.com"]
[Source "ChessBase"]
[SourceQuality "1"]
[TimeControl "5400+30"]

1. Nf3 {[%emt 0:05:12]} Nf6 {[%emt 0:00:00]} 2. g3 {[%emt 0:01:03]} g6 {[%emt 0:00:00]} 3. Bg2 {[%emt 0:00:20]} Bg7 {[%emt 0:00:00]} 4. O-O {[%emt 0:00:20]} O-O {[%emt 0:00:01]} 5. c4 {[%emt 0:01:09]} d6 {[%emt 0:00:18]} 6. d4 {[%emt 0:00:39]} c5 {[%emt 0:01:21]} 7. Nc3 {[%emt 0:02:51]} Nc6 {[%emt 0:00:06]} 8. d5 {[%emt 0:01:43]} Na5 {[%emt 0:00:11]} 9. Nd2 {[%emt 0:00:07]} a6 {[%emt 0:01:01]} 10. Qc2 {[%emt 0:02:02]} Bd7 {[%emt 0:01:41]} 11. b3 {[%emt 0:02:19]} b5 {[%emt 0:00:21]} 12. Bb2 {[%emt 0:00:44]} Rb8 {[%emt 0:00:25]} 13. Rab1 {[%emt 0:00:40]} e5 {[%emt 0:03:37]} 14. dxe6 {[%emt 0:04:42]} Bxe6 {[%emt 0:00:25]} 15. Nce4 {[%emt 0:24:55]} Nxe4 {[%emt 0:26:39]} 16. Nxe4 {[%emt 0:03:25]} Bxb2 {[%emt 0:01:35]} 17. Rxb2 {[%emt 0:07:13]} bxc4 {[%emt 0:12:33]} 18. Qc3 {[%emt 0:12:49]} f5 {[%emt 0:04:24]} 19. Nxd6 {[%emt 0:00:58]} Qxd6 {[%emt 0:21:45]} 20. Qxa5 {[%emt 0:00:28]} cxb3 {[%emt 0:00:47]} 21. axb3 {[%emt 0:02:37]} Rxb3 {[%emt 0:01:10]} 22. Rxb3 {[%emt 0:04:13]} Bxb3 {[%emt 0:00:03]} 23. Rc1 {[%emt 0:05:51]} Rc8 {[%emt 0:04:55]} 24. Qa1 {[%emt 0:08:40]} c4 {[%emt 0:12:00]} 25. Qa5 {[%emt 0:06:05]} Rc5 {[%emt 0:01:06]} 26. Qc3 {[%emt 0:01:04]} a5 {[%emt 0:00:40]} 27. Re1 {[%emt 0:00:27]} Qe5 {[%emt 0:01:01]} 28. Qc1 {[%emt 0:00:51]} c3 {[%emt 0:00:55]} 29. e4 {[%emt 0:00:02]} c2 {[%emt 0:00:22]} 30. exf5 {[%emt 0:00:06]} Qxe1+ {[%emt 0:00:05]} 0-1

[Event "XI Paracin Festival 2018"]
[Site "Paracin"]
[Date "2018.07.10"]
[Round "5"]
[White "Cvetkovic, Nemanja"]
[Black "Lajthajm, Borko"]
[Result "0-1"]
[ECO "E16"]
[WhiteElo "2278"]
[BlackElo "2422"]
[Annotator "NA"]
[PlyCount "104"]
[EventDate "2018.07.06"]
[EventType "swiss"]
[EventCountry "SRB"]
[SourceTitle "playchess.com"]
[Source "ChessBase"]
[SourceQuality "1"]
[TimeControl "5400+30"]

1. d4 {[%emt 0:00:00]} Nf6 {[%emt 0:00:00]} 2. c4 {[%emt 0:00:00]} e6 {[%emt 0:00:00]} 3. Nf3 {[%emt 0:00:00]} b6 {[%emt 0:00:18]} 4. g3 {[%emt 0:00:02]} Bb7 {[%emt 0:00:12]} 5. Bg2 {[%emt 0:00:12]} Bb4+ {[%emt 0:00:07]} 6. Nbd2 {[%emt 0:00:30]} O-O {[%emt 0:02:05]} 7. O-O {[%emt 0:00:17]} a5 {[%emt 0:00:18]} 8. Qc2 {[%emt 0:01:23]} Bxd2 {[%emt 0:00:06]} 9. Qxd2 {[%emt 0:00:06]} Be4 {[%emt 0:00:16]} 10. Bh3 {[%emt 0:02:48]} a4 {[%emt 0:02:50]} 11. Nh4 {[%emt 0:01:57]} h6 {[%emt 0:02:42]} 12. f3 {[%emt 0:00:42]} Bh7 {[%emt 0:00:12]} 13. e4 {[%emt 0:02:51]} d6 {[%emt 0:03:48]} 14. Qe2 {[%emt 0:11:16]} Re8 {[%emt 0:01:25]} 15. Be3 {[%emt 0:01:41]} Nc6 {[%emt 0:02:34]} 16. d5 Ne5 {[%emt 0:01:11]} 17. Ng2 {[%emt 0:21:03]} Ned7 {[%emt 0:00:37]} 18. Rad1 {[%emt 0:09:37]} Qe7 {[%emt 0:01:00]} 19. Rd3 {[%emt 0:02:54]} Ra5 {[%emt 0:07:06]} 20. Ra3 {[%emt 0:04:26]} Rb8 {[%emt 0:01:03]} 21. Qc2 {[%emt 0:11:26]} Rba8 {[%emt 0:06:20]} 22. Qc3 {[%emt 0:02:42]} Nf8 {[%emt 0:01:37]} 23. b4 {[%emt 0:03:03]} axb3 {[%emt 0:00:28]} 24. Rxa5 {[%emt 0:00:00]} Rxa5 {[%emt 0:00:38]} 25. axb3 {[%emt 0:00:02]} N6d7 {[%emt 0:01:27]} 26. Ra1 {[%emt 0:01:50]} Rxa1+ {[%emt 0:00:10]} 27. Qxa1 {[%emt 0:00:01]} Ne5 {[%emt 0:00:16]} 28. Ne1 {[%emt 0:05:01]} exd5 {[%emt 0:00:26]} 29. cxd5 {[%emt 0:01:07]} f5 {[%emt 0:00:27]} 30. Qd4 {[%emt 0:01:25]} fxe4 {[%emt 0:00:30]} 31. fxe4 {[%emt 0:00:02]} Ned7 {[%emt 0:00:15]} 32. Nd3 Qxe4 {[%emt 0:01:22]} 33. Qxe4 {[%emt 0:10:14]} Bxe4 {[%emt 0:00:09]} 34. Nb4 {[%emt 0:00:59]} Nf6 {[%emt 0:00:11]} 35. Bf1 {[%emt 0:01:42]} N8d7 {[%emt 0:01:01]} 36. Na6 {[%emt 0:04:28]} Nxd5 {[%emt 0:03:07]} 37. Bc4 {[%emt 0:00:01]} c6 {[%emt 0:00:11]} 38. Bf4 {[%emt 0:02:18]} Ne5 {[%emt 0:01:37]} 39. Bxe5 {[%emt 0:00:37]} dxe5 {[%emt 0:00:06]} 40. Nb4 {[%emt 0:00:30]} b5 {[%emt 0:00:10]} 41. Nxc6 {[%emt 0:00:06]} bxc4 {[%emt 0:00:11]} 42. bxc4 {[%emt 0:00:05]} Nf6 {[%emt 0:01:29]} 43. Nxe5 {[%emt 0:00:02]} Bf5 {[%emt 0:00:43]} 44. Kg2 {[%emt 0:00:18]} Be6 {[%emt 0:00:38]} 45. Kf3 {[%emt 0:02:07]} Nd7 {[%emt 0:00:07]} 46. Nd3 {[%emt 0:00:27]} Bxc4 {[%emt 0:00:08]} 47. Nf2 {[%emt 0:00:35]} Kf7 {[%emt 0:00:46]} 48. h4 {[%emt 0:00:09]} Ne5+ {[%emt 0:00:36]} 49. Ke4 {[%emt 0:00:14]} Ke6 {[%emt 0:00:08]} 50. Nh3 {[%emt 0:00:12]} Bd5+ {[%emt 0:00:38]} 51. Kd4 {[%emt 0:00:07]} Bf3 {[%emt 0:00:28]} 52. Nf4+ {[%emt 0:01:03]} Kf5 0-1

[Event "XI Paracin Festival 2018"]
[Site "Paracin"]
[Date "2018.07.10"]
[Round "5"]
[White "Popovic, Milan S"]
[Black "Martic, Ivan"]
[Result "1/2-1/2"]
[ECO "A48"]
[WhiteElo "2264"]
[BlackElo "2375"]
[Annotator "NA"]
[PlyCount "43"]
[EventDate "2018.07.06"]
[EventType "swiss"]
[EventCountry "SRB"]
[SourceTitle "playchess.com"]
[Source "ChessBase"]
[SourceQuality "1"]
[TimeControl "5400+30"]

1. d4 {[%emt 0:00:00]} Nf6 {[%emt 0:00:00]} 2. Nf3 {[%emt 0:00:00]} g6 {[%emt 0:00:50]} 3. Bg5 {[%emt 0:00:01]} Bg7 {[%emt 0:00:14]} 4. Nbd2 {[%emt 0:00:06]} O-O {[%emt 0:00:15]} 5. c3 {[%emt 0:00:14]} d6 {[%emt 0:00:11]} 6. e4 {[%emt 0:00:05]} c5 {[%emt 0:00:43]} 7. dxc5 {[%emt 0:00:12]} dxc5 {[%emt 0:00:06]} 8. Be2 {[%emt 0:03:35]} Nc6 {[%emt 0:01:32]} 9. O-O {[%emt 0:00:30]} Qc7 {[%emt 0:00:30]} 10. Re1 {[%emt 0:02:28]} Rd8 {[%emt 0:00:50]} 11. Qc2 {[%emt 0:00:11]} h6 {[%emt 0:07:48]} 12. Be3 {[%emt 0:00:35]} Ng4 {[%emt 0:04:56]} 13. Bxc5 {[%emt 0:15:16]} Nce5 {[%emt 0:00:22]} 14. Nxe5 {[%emt 0:15:41]} Bxe5 {[%emt 0:02:33]} 15. h3 {[%emt 0:23:18]} Bh2+ {[%emt 0:48:35]} 16. Kf1 {[%emt 0:03:59]} Qxc5 {[%emt 0:00:48]} 17. Bxg4 {[%emt 0:02:52]} Bxg4 {[%emt 0:00:52]} 18. hxg4 {[%emt 0:00:06]} Bf4 {[%emt 0:00:53]} 19. Nf3 {[%emt 0:00:24]} Qc8 {[%emt 0:00:53]} 20. g3 {[%emt 0:05:46]} Qxg4 {[%emt 0:00:47]} 21. Kg2 {[%emt 0:00:24]} Bc7 {[%emt 0:04:39]} 22. Qd1 1/2-1/2

[Event "XI Paracin Festival 2018"]
[Site "Paracin"]
[Date "2018.07.10"]
[Round "5"]
[White "Uzumcu, Ahmet Utku"]
[Black "Atakisi, Umut"]
[Result "1/2-1/2"]
[ECO "B35"]
[WhiteElo "2261"]
[BlackElo "2390"]
[Annotator "NA"]
[PlyCount "77"]
[EventDate "2018.07.06"]
[EventType "swiss"]
[EventCountry "SRB"]
[SourceTitle "playchess.com"]
[Source "ChessBase"]
[SourceQuality "1"]
[TimeControl "5400+30"]

1. e4 {[%emt 0:00:00]} c5 {[%emt 0:10:01]} 2. Nf3 {[%emt 0:00:00]} Nc6 {[%emt 0:00:06]} 3. d4 {[%emt 0:00:06]} cxd4 {[%emt 0:00:02]} 4. Nxd4 {[%emt 0:00:06]} g6 {[%emt 0:00:05]} 5. Nc3 {[%emt 0:00:22]} Bg7 {[%emt 0:00:06]} 6. Be3 {[%emt 0:00:09]} Nf6 {[%emt 0:00:05]} 7. Bc4 {[%emt 0:00:23]} O-O {[%emt 0:00:07]} 8. Bb3 {[%emt 0:00:13]} d6 {[%emt 0:00:35]} 9. f3 {[%emt 0:00:42]} Bd7 {[%emt 0:00:07]} 10. Qd2 {[%emt 0:00:25]} Nxd4 {[%emt 0:00:07]} 11. Bxd4 {[%emt 0:00:06]} b5 {[%emt 0:00:05]} 12. a4 {[%emt 0:00:04]} b4 {[%emt 0:00:31]} 13. Nd5 {[%emt 0:01:48]} Nxd5 {[%emt 0:00:09]} 14. Bxg7 {[%emt 0:00:47]} Kxg7 {[%emt 0:00:08]} 15. exd5 {[%emt 0:00:06]} Qa5 {[%emt 0:10:57]} 16. O-O {[%emt 0:07:35]} Qc5+ {[%emt 0:03:44]} 17. Kh1 {[%emt 0:01:59]} e5 {[%emt 0:01:45]} 18. dxe6 {[%emt 0:05:55]} Bxe6 {[%emt 0:00:51]} 19. Rad1 {[%emt 0:12:58]} Rfe8 {[%emt 0:14:43]} 20. h3 {[%emt 0:10:08]} Bxb3 {[%emt 0:17:34]} 21. cxb3 {[%emt 0:00:08]} Re6 {[%emt 0:00:09]} 22. Rfe1 {[%emt 0:09:23]} Rae8 {[%emt 0:00:29]} 23. Rxe6 {[%emt 0:01:48]} Rxe6 {[%emt 0:00:08]} 24. Qd4+ {[%emt 0:00:51]} Qxd4 {[%emt 0:05:12]} 25. Rxd4 {[%emt 0:00:04]} Re2 {[%emt 0:18:58]} 26. Rxd6 {[%emt 0:02:20]} Rxb2 {[%emt 0:00:23]} 27. Ra6 {[%emt 0:00:15]} Rxb3 {[%emt 0:00:07]} 28. Rxa7 {[%emt 0:00:03]} Ra3 {[%emt 0:01:06]} 29. a5 {[%emt 0:01:10]} Kf6 {[%emt 0:00:08]} 30. Rb7 {[%emt 0:00:32]} b3 {[%emt 0:00:37]} 31. Rb5 {[%emt 0:03:51]} h5 {[%emt 0:02:53]} 32. a6 {[%emt 0:04:57]} h4 {[%emt 0:01:06]} 33. a7 {[%emt 0:01:01]} Rxa7 {[%emt 0:00:07]} 34. Rxb3 {[%emt 0:00:04]} Ra4 {[%emt 0:00:08]} 35. Rb5 {[%emt 0:00:44]} Kg7 {[%emt 0:00:23]} 36. Kg1 {[%emt 0:01:41]} f5 {[%emt 0:00:07]} 37. Rb6 {[%emt 0:01:13]} Kh6 {[%emt 0:00:18]} 38. Kf2 {[%emt 0:01:41]} Kg5 {[%emt 0:00:02]} 39. Rc6 {[%emt 0:00:36]} 1/2-1/2

[Event "XI Paracin Festival 2018"]
[Site "Paracin"]
[Date "2018.07.10"]
[Round "5"]
[White "Ivic, Matija"]
[Black "Brankovic, Dejan"]
[Result "1/2-1/2"]
[ECO "A05"]
[WhiteElo "2245"]
[BlackElo "2377"]
[Annotator "NA"]
[PlyCount "40"]
[EventDate "2018.07.06"]
[EventType "swiss"]
[EventCountry "SRB"]
[SourceTitle "playchess.com"]
[Source "ChessBase"]
[SourceQuality "1"]
[TimeControl "5400+30"]

1. Nf3 {[%emt 0:00:00]} Nf6 {[%emt 0:00:00]} 2. b3 {[%emt 0:01:48]} g6 {[%emt 0:01:51]} 3. Bb2 {[%emt 0:00:13]} Bg7 {[%emt 0:00:01]} 4. c4 {[%emt 0:01:11]} O-O {[%emt 0:05:10]} 5. g3 {[%emt 0:01:59]} d6 {[%emt 0:02:51]} 6. Bg2 {[%emt 0:00:06]} c6 {[%emt 0:08:53]} 7. O-O {[%emt 0:01:34]} Qa5 {[%emt 0:01:54]} 8. h3 {[%emt 0:00:51]} b5 {[%emt 0:02:54]} 9. d3 {[%emt 0:02:40]} Bb7 {[%emt 0:03:01]} 10. Qd2 {[%emt 0:02:52]} Qxd2 {[%emt 0:01:00]} 11. Nbxd2 {[%emt 0:00:07]} bxc4 {[%emt 0:12:57]} 12. bxc4 {[%emt 0:01:04]} Nbd7 {[%emt 0:07:52]} 13. Rab1 {[%emt 0:01:41]} Rab8 {[%emt 0:02:57]} 14. Nd4 {[%emt 0:03:05]} Rfc8 {[%emt 0:01:15]} 15. Ba3 {[%emt 0:01:25]} Ne8 {[%emt 0:15:22]} 16. e3 {[%emt 0:11:22]} Bxd4 {[%emt 0:04:47]} 17. exd4 {[%emt 0:00:13]} Ba8 {[%emt 0:01:43]} 18. Nb3 {[%emt 0:00:13]} Rb6 {[%emt 0:01:05]} 19. Rfe1 {[%emt 0:01:56]} e6 {[%emt 0:03:44]} 20. Nd2 {[%emt 0:08:14]} Rcb8 {[%emt 0:02:17]} 1/2-1/2

[Event "XI Paracin Festival 2018"]
[Site "Paracin"]
[Date "2018.07.10"]
[Round "5"]
[White "Olson, Hamish"]
[Black "Nestorovic, Dejan"]
[Result "0-1"]
[ECO "B22"]
[WhiteElo "2229"]
[BlackElo "2341"]
[Annotator "NA"]
[PlyCount "80"]
[EventDate "2018.07.06"]
[EventType "swiss"]
[EventCountry "SRB"]
[SourceTitle "playchess.com"]
[Source "ChessBase"]
[SourceQuality "1"]
[TimeControl "5400+30"]

1. e4 {[%emt 0:04:04]} c5 {[%emt 0:00:00]} 2. c3 {[%emt 0:00:17]} Nf6 {[%emt 0:01:27]} 3. d3 {[%emt 0:02:55]} Nc6 {[%emt 0:03:12]} 4. Nf3 {[%emt 0:00:11]} d6 {[%emt 0:03:34]} 5. Be2 {[%emt 0:00:35]} g6 {[%emt 0:01:52]} 6. O-O {[%emt 0:00:17]} Bg7 {[%emt 0:00:06]} 7. Re1 {[%emt 0:00:57]} O-O {[%emt 0:00:19]} 8. Nbd2 {[%emt 0:01:04]} Bg4 {[%emt 0:16:44]} 9. h3 {[%emt 0:00:47]} Bxf3 {[%emt 0:02:52]} 10. Nxf3 {[%emt 0:00:15]} Rc8 {[%emt 0:09:30]} 11. Bf1 {[%emt 0:10:17]} Nd7 {[%emt 0:02:11]} 12. Be3 {[%emt 0:07:08]} b5 {[%emt 0:06:51]} 13. a3 {[%emt 0:03:57]} a5 {[%emt 0:01:46]} 14. a4 {[%emt 0:04:20]} b4 {[%emt 0:02:36]} 15. Rc1 {[%emt 0:06:57]} Nb6 {[%emt 0:14:44]} 16. d4 {[%emt 0:06:58]} bxc3 {[%emt 0:00:58]} 17. bxc3 {[%emt 0:02:44]} cxd4 {[%emt 0:00:07]} 18. cxd4 {[%emt 0:00:10]} Nb4 {[%emt 0:00:08]} 19. Qb3 {[%emt 0:01:03]} Nd7 {[%emt 0:08:32]} 20. Bc4 {[%emt 0:05:28]} e6 {[%emt 0:09:48]} 21. Bd2 {[%emt 0:17:26]} Nc6 {[%emt 0:05:56]} 22. Qe3 Ndb8 {[%emt 0:02:26]} 23. d5 {[%emt 0:11:32]} exd5 {[%emt 0:00:09]} 24. Bxd5 {[%emt 0:00:13]} Nb4 {[%emt 0:00:00]} 25. Rxc8 {[%emt 0:03:12]} Qxc8 {[%emt 0:01:01]} 26. Rc1 Qd7 27. Qb3 {[%emt 0:01:17]} N8a6 {[%emt 0:01:42]} 28. Be3 {[%emt 0:01:20]} Bf6 {[%emt 0:01:40]} 29. Nd2 {[%emt 0:05:26]} Rb8 {[%emt 0:01:12]} 30. Bc4 {[%emt 0:01:10]} Nc5 {[%emt 0:00:46]} 31. Bxc5 {[%emt 0:00:11]} dxc5 {[%emt 0:00:01]} 32. Nf3 {[%emt 0:00:42]} Nc6 {[%emt 0:01:22]} 33. Bb5 {[%emt 0:02:38]} Nd4 {[%emt 0:00:17]} 34. Nxd4 {[%emt 0:00:08]} Bxd4 {[%emt 0:00:25]} 35. Qd5 Qe7 {[%emt 0:00:28]} 36. Rf1 {[%emt 0:01:48]} Kg7 {[%emt 0:00:56]} 37. g3 {[%emt 0:00:29]} Rd8 {[%emt 0:00:26]} 38. Qc6 {[%emt 0:00:09]} Rd6 {[%emt 0:00:30]} 39. Qa8 {[%emt 0:00:30]} Re6 {[%emt 0:00:53]} 40. Bc6 {[%emt 0:00:18]} Qd6 {[%emt 0:00:13]} 0-1

[Event "XI Paracin Festival 2018"]
[Site "Paracin"]
[Date "2018.07.10"]
[Round "5"]
[White "Parnali, S Dharia"]
[Black "Budisavljevic, Luka"]
[Result "1/2-1/2"]
[ECO "A50"]
[WhiteElo "2170"]
[BlackElo "2324"]
[Annotator "NA"]
[PlyCount "76"]
[EventDate "2018.07.06"]
[EventType "swiss"]
[EventCountry "SRB"]
[SourceTitle "playchess.com"]
[Source "ChessBase"]
[SourceQuality "1"]
[TimeControl "5400+30"]

1. d4 Nf6 2. c4 a6 3. Nc3 c5 4. d5 b5 5. Nf3 b4 6. Nb1 d6 7. Bg5 Ne4 8. Bf4 e5 9. dxe6 fxe6 10. e3 Be7 11. Bd3 Nf6 12. Nbd2 Nc6 13. Qc2 Rb8 14. b3 a5 15. Ng5 Nh5 16. Be4 Nd4 17. exd4 Nxf4 18. Nxh7 cxd4 19. g3 d3 20. Qd1 Bb7 21. gxf4 Rxh7 22. Bxh7 Bxh1 23. Qh5+ Kd7 24. Bxd3 Qb6 25. Ke2 Bc6 26. Nf3 Rf8 27. f5 Qc5 28. Qg6 Bxf3+ 29. Kxf3 Rf6 30. Qg4 exf5 31. Qf4 Qe5 32. Rd1 Kc6 33. h4 Rf8 34. h5 Rf6 35. Rg1 Rf7 36. Rd1 Kc5 37. Qe3+ Qxe3+ 38. fxe3 Bg5 1/2-1/2